[Event "33rd Pula Open 2019"]
[Site "Pula"]
[Date "2019.06.28"]
[Round "8.7"]
[White "Pecnik, Leo"]
[Black "Rubil, Marko"]
[Result "0-1"]
[ECO "A28"]
[WhiteElo "2334"]
[BlackElo "2226"]
[Annotator "NA"]
[PlyCount "90"]
[EventDate "2019.06.22"]
[EventType "swiss"]
[EventCountry "CRO"]
[SourceTitle "playchess.com"]
[Source "ChessBase"]
[SourceQuality "1"]
[TimeControl "5400+30"]

1. c4 {[%emt 0:00:30]} e5 {[%emt 0:10:30]} 2. e3 {[%emt 0:00:30]} Nf6 {[%emt 0:00:30]} 3. Nc3 {[%emt 0:00:00]} Be7 {[%emt 0:01:30]} 4. Nf3 {[%emt 0:03:00]} Nc6 {[%emt 0:00:30]} 5. d4 {[%emt 0:00:30]} exd4 {[%emt 0:00:30]} 6. Nxd4 {[%emt 0:06:30]} O-O {[%emt 0:07:30]} 7. Be2 {[%emt 0:04:30]} Bb4 {[%emt 0:07:30]} 8. O-O {[%emt 0:03:30]} Bxc3 {[%emt 0:13:30]} 9. bxc3 {[%emt 0:00:30]} Ne7 {[%emt 0:00:30]} 10. Qc2 {[%emt 0:08:30]} d6 {[%emt 0:01:30]} 11. e4 {[%emt 0:07:30]} h6 {[%emt 0:11:30]} 12. Rd1 {[%emt 0:18:30]} Bd7 {[%emt 0:06:30]} 13. a4 {[%emt 0:04:30]} a5 {[%emt 0:02:30]} 14. Nb5 {[%emt 0:03:30]} b6 {[%emt 0:07:30]} 15. c5 {[%emt 0:09:30]} bxc5 {[%emt 0:09:13]} 16. e5 {[%emt 0:02:30]} dxe5 {[%emt 0:00:26]} 17. Ba3 {[%emt 0:00:00]} Re8 {[%emt 0:01:07]} 18. Bxc5 {[%emt 0:01:00]} Ng6 {[%emt 0:05:52]} 19. Rd2 {[%emt 0:05:40]} Nf4 {[%emt 0:00:39]} 20. Bf1 {[%emt 0:01:07]} Ne6 {[%emt 0:00:14]} 21. Ba3 {[%emt 0:00:19]} Qc8 {[%emt 0:00:19]} 22. Re1 {[%emt 0:01:04]} Nf4 {[%emt 0:00:26]} 23. c4 {[%emt 0:01:01]} Bc6 {[%emt 0:07:00]} 24. Bb2 {[%emt 0:05:14]} Qb7 {[%emt 0:00:02]} 25. f3 {[%emt 0:05:59]} Ng6 {[%emt 0:01:43]} 26. Rde2 {[%emt 0:02:18]} Nd7 {[%emt 0:01:09]} 27. c5 {[%emt 0:01:46]} Re7 {[%emt 0:00:25]} 28. Rf2 {[%emt 0:00:31]} Rae8 {[%emt 0:00:33]} 29. Qc3 {[%emt 0:00:23]} Nf4 {[%emt 0:00:38]} 30. Qxa5 {[%emt 0:00:58]} Nxc5 {[%emt 0:00:13]} 31. Ba3 {[%emt 0:01:10]} Ncd3 {[%emt 0:02:21]} 32. Bxd3 {[%emt 0:01:44]} Nxd3 {[%emt 0:00:01]} 33. Bxe7 {[%emt 0:00:07]} Rxe7 {[%emt 0:00:27]} 34. Rd1 {[%emt 0:01:32]} Nxf2 {[%emt 0:00:09]} 35. Kxf2 {[%emt 0:00:03]} e4 {[%emt 0:00:22]} 36. Rd8+ {[%emt 0:00:50]} Kh7 {[%emt 0:00:39]} 37. Qb4 {[%emt 0:00:49]} Qb6+ {[%emt 0:00:25]} 38. Kg3 {[%emt 0:00:27]} Re6 {[%emt 0:00:20]} 39. Qd4 {[%emt 0:00:49]} Qa5 {[%emt 0:01:39]} 40. Qd2 {[%emt 0:00:32]} Qxa4 {[%emt 0:00:26]} 41. Nxc7 {[%emt 0:00:14]} Rg6+ {[%emt 0:01:04]} 42. Kh3 {[%emt 0:00:24]} exf3 {[%emt 0:00:20]} 43. gxf3 {[%emt 0:00:34]} Bxf3 {[%emt 0:00:15]} 44. Qd4 {[%emt 0:00:52]} Qa5 {[%emt 0:00:26]} 45. Nb5 {[%emt 0:00:30]} Bg2+ {[%emt 0:00:31]} 0-1

[Event "33rd Pula Open 2019"]
[Site "Pula"]
[Date "2019.06.28"]
[Round "8.8"]
[White "Urh, Zala"]
[Black "Maier, Christian"]
[Result "1/2-1/2"]
[ECO "C55"]
[WhiteElo "2127"]
[BlackElo "2299"]
[Annotator "NA"]
[PlyCount "20"]
[EventDate "2019.06.22"]
[EventType "swiss"]
[EventCountry "CRO"]
[SourceTitle "playchess.com"]
[Source "ChessBase"]
[SourceQuality "1"]
[TimeControl "5400+30"]

1. e4 {[%emt 0:03:30]} e5 {[%emt 0:00:30]} 2. Nf3 {[%emt 0:00:30]} Nc6 {[%emt 0:00:30]} 3. Bc4 {[%emt 0:00:30]} Be7 {[%emt 0:01:30]} 4. c3 {[%emt 0:02:30]} Nf6 {[%emt 0:00:00]} 5. d3 {[%emt 0:00:30]} O-O {[%emt 0:00:00]} 6. O-O {[%emt 0:01:30]} d6 {[%emt 0:04:30]} 7. Re1 {[%emt 0:03:30]} h6 {[%emt 0:04:30]} 8. Nbd2 {[%emt 0:01:30]} Nh7 {[%emt 0:04:30]} 9. h3 {[%emt 0:03:30]} Ng5 {[%emt 0:05:30]} 10. Nf1 {[%emt 0:03:30]} Nxf3+ {[%emt 0:05:30]} 1/2-1/2

[Event "33rd Pula Open 2019"]
[Site "Pula"]
[Date "2019.06.28"]
[Round "8.9"]
[White "Tratar, Marko"]
[Black "Ghersinich, Enrico"]
[Result "1-0"]
[ECO "B39"]
[WhiteElo "2463"]
[BlackElo "2221"]
[Annotator "ChessBase"]
[PlyCount "77"]
[EventDate "2019.06.22"]
[EventType "swiss"]
[EventCountry "CRO"]
[SourceTitle "playchess.com"]
[Source "ChessBase"]
[SourceQuality "1"]
[TimeControl "5400+30"]

1. Nf3 {[%emt 0:00:30]} c5 {[%emt 0:00:30]} 2. c4 {[%emt 0:00:00]} Nc6 {[%emt 0:00:30]} 3. d4 {[%emt 0:02:00]} cxd4 {[%emt 0:00:30]} 4. Nxd4 {[%emt 0:00:30]} g6 {[%emt 0:00:30]} 5. e4 {[%emt 0:00:30]} Bg7 {[%emt 0:00:00]} 6. Be3 {[%emt 0:00:00]} Nf6 {[%emt 0:00:00]} 7. Nc3 {[%emt 0:02:00]} Ng4 {[%emt 0:01:30]} 8. Qxg4 {[%emt 0:00:30]} Nxd4 {[%emt 0:00:00]} 9. Qd1 {[%emt 0:00:30]} e5 {[%emt 0:00:00]} 10. Bd3 {[%emt 0:03:30]} O-O {[%emt 0:00:30]} 11. a4 {[%emt 0:03:30]} d6 {[%emt 0:03:30]} 12. O-O {[%emt 0:14:30]} Ne6 {[%emt 0:10:30]} 13. Qd2 {[%emt 0:06:30]} f5 {[%emt 0:08:30]} 14. f3 {[%emt 0:01:30]} f4 {[%emt 0:15:30]} 15. Bf2 {[%emt 0:00:30]} Rf7 {[%emt 0:01:30]} 16. Rfd1 {[%emt 0:03:30]} Bf8 {[%emt 0:01:30]} 17. Bf1 {[%emt 0:05:30]} Qe8 {[%emt 0:11:30]} 18. Nb5 {[%emt 0:05:30]} Qc6 {[%emt 0:02:30]} 19. Qd5 {[%emt 0:04:30]} g5 {[%emt 0:15:30]} 20. Nxd6 {[%emt 0:06:30]} Qxd6 {[%emt 0:01:30]} 21. Qxd6 {[%emt 0:00:00]} Bxd6 {[%emt 0:00:00]} 22. Rxd6 {[%emt 0:00:00]} g4 {[%emt 0:01:00]} 23. fxg4 {[%emt 0:17:30]} Ng5 {[%emt 0:02:30]} 24. Bh4 {[%emt 0:04:25]} Nxe4 {[%emt 0:00:30]} 25. Rd8+ {[%emt 0:00:15]} Kg7 {[%emt 0:02:30]} 26. Re1 {[%emt 0:00:28]} Nc5 {[%emt 0:07:32]} 27. Rxe5 {[%emt 0:00:22]} Nd7 {[%emt 0:00:04]} 28. Rg5+ {[%emt 0:00:35]} Kh6 {[%emt 0:00:06]} 29. Rgg8 {[%emt 0:00:27]} Rg7 {[%emt 0:00:58]} 30. g5+ {[%emt 0:02:01]} Kg6 {[%emt 0:00:09]} 31. Bd3+ {[%emt 0:00:12]} Kf7 {[%emt 0:00:07]} 32. Bxh7 {[%emt 0:00:32]} Rxg8 {[%emt 0:01:48]} 33. Rxg8 {[%emt 0:01:34]} Nb6 {[%emt 0:02:29]} 34. g6+ {[%emt 0:00:18]} Ke6 {[%emt 0:00:06]} 35. Re8+ {[%emt 0:00:10]} Kd6 {[%emt 0:00:33]} 36. g7 {[%emt 0:00:40]} Be6 {[%emt 0:00:15]} 37. c5+ {[%emt 0:00:30]} Kd5 {[%emt 0:00:18]} 38. Rxe6 {[%emt 0:00:16]} Kxe6 {[%emt 0:00:09]} 39. g8=Q+ {[%emt 0:00:10]} 1-0

[Event "33rd Pula Open 2019"]
[Site "Pula"]
[Date "2019.06.28"]
[Round "8.10"]
[White "Bakker, Guido"]
[Black "Fercec, Nenad"]
[Result "0-1"]
[ECO "A50"]
[WhiteElo "2208"]
[BlackElo "2446"]
[Annotator "NA"]
[PlyCount "42"]
[EventDate "2019.06.22"]
[EventType "swiss"]
[EventCountry "CRO"]
[SourceTitle "playchess.com"]
[Source "ChessBase"]
[SourceQuality "1"]
[TimeControl "5400+30"]

1. d4 {[%emt 0:00:30]} Nf6 {[%emt 0:00:30]} 2. c4 {[%emt 0:00:00]} g6 {[%emt 0:00:00]} 3. Nf3 {[%emt 0:00:00]} Bg7 {[%emt 0:00:00]} 4. g3 {[%emt 0:00:00]} b6 {[%emt 0:00:30]} 5. Bg2 {[%emt 0:00:00]} Bb7 {[%emt 0:00:30]} 6. O-O {[%emt 0:00:30]} O-O {[%emt 0:00:30]} 7. Bf4 {[%emt 0:01:30]} d5 {[%emt 0:01:30]} 8. Ne5 {[%emt 0:06:30]} Qc8 {[%emt 0:00:00]} 9. Nc3 {[%emt 0:07:30]} dxc4 {[%emt 0:00:00]} 10. e4 {[%emt 0:00:30]} c5 {[%emt 0:01:30]} 11. d5 {[%emt 0:01:30]} Nh5 {[%emt 0:00:30]} 12. Nxc4 {[%emt 0:01:30]} Nxf4 {[%emt 0:03:30]} 13. gxf4 {[%emt 0:00:30]} Ba6 {[%emt 0:01:30]} 14. Qb3 {[%emt 0:06:30]} Qg4 {[%emt 0:12:30]} 15. Nb5 {[%emt 0:22:30]} Qxf4 {[%emt 0:01:30]} 16. d6 {[%emt 0:01:30]} Nc6 {[%emt 0:04:30]} 17. Nc7 {[%emt 0:15:30]} Nd4 {[%emt 0:00:30]} 18. Qd3 {[%emt 0:00:30]} Bxc4 {[%emt 0:07:30]} 19. Qxc4 {[%emt 0:00:30]} Be5 {[%emt 0:03:30]} 20. Rfe1 {[%emt 0:00:30]} Qxh2+ {[%emt 0:00:30]} 21. Kf1 {[%emt 0:00:30]} exd6 {[%emt 0:00:30]} 0-1

[Event "33rd Pula Open 2019"]
[Site "Pula"]
[Date "2019.06.28"]
[Round "8.11"]
[White "Grishchenko, Sergey"]
[Black "Bozinovic, Bogdan"]
[Result "1/2-1/2"]
[ECO "A61"]
[WhiteElo "2411"]
[BlackElo "2194"]
[Annotator "NA"]
[PlyCount "28"]
[EventDate "2019.06.22"]
[EventType "swiss"]
[EventCountry "CRO"]
[SourceTitle "playchess.com"]
[Source "ChessBase"]
[SourceQuality "1"]
[TimeControl "5400+30"]

1. d4 {[%emt 0:00:30]} Nf6 {[%emt 0:01:30]} 2. c4 {[%emt 0:00:00]} c5 {[%emt 0:00:30]} 3. d5 {[%emt 0:00:00]} e6 {[%emt 0:00:30]} 4. Nc3 {[%emt 0:00:30]} exd5 {[%emt 0:00:30]} 5. cxd5 {[%emt 0:00:00]} d6 {[%emt 0:00:30]} 6. Nf3 {[%emt 0:00:00]} g6 {[%emt 0:00:30]} 7. Bf4 {[%emt 0:00:30]} a6 {[%emt 0:02:30]} 8. a4 {[%emt 0:00:30]} Bg7 {[%emt 0:00:30]} 9. h3 {[%emt 0:00:00]} O-O {[%emt 0:01:30]} 10. e3 {[%emt 0:00:00]} Re8 {[%emt 0:04:30]} 11. Be2 {[%emt 0:02:30]} Ne4 {[%emt 0:00:30]} 12. Nxe4 {[%emt 0:03:30]} Rxe4 {[%emt 0:00:30]} 13. Nd2 {[%emt 0:00:30]} Rb4 {[%emt 0:00:30]} 14. Nc4 {[%emt 0:02:30]} Nd7 {[%emt 0:03:30]} 1/2-1/2

[Event "33rd Pula Open 2019"]
[Site "Pula"]
[Date "2019.06.28"]
[Round "8.13"]
[White "Palchuk, Andrii"]
[Black "Medak, Bojan"]
[Result "0-1"]
[ECO "B07"]
[WhiteElo "2031"]
[BlackElo "2342"]
[Annotator "NA"]
[PlyCount "112"]
[EventDate "2019.06.22"]
[EventType "swiss"]
[EventCountry "CRO"]
[SourceTitle "playchess.com"]
[Source "ChessBase"]
[SourceQuality "1"]
[TimeControl "5400+30"]

1. e4 {[%emt 0:00:30]} Nc6 {[%emt 0:02:30]} 2. Nf3 {[%emt 0:00:30]} d6 {[%emt 0:00:00]} 3. d4 {[%emt 0:00:00]} Nf6 {[%emt 0:00:00]} 4. Bd3 {[%emt 0:00:00]} g6 {[%emt 0:00:30]} 5. c3 {[%emt 0:00:30]} Bg7 {[%emt 0:00:30]} 6. O-O {[%emt 0:00:00]} O-O {[%emt 0:00:00]} 7. h3 {[%emt 0:00:00]} e5 {[%emt 0:01:00]} 8. Re1 {[%emt 0:02:30]} Re8 {[%emt 0:00:00]} 9. d5 {[%emt 0:01:30]} Nb8 {[%emt 0:04:00]} 10. c4 {[%emt 0:02:30]} a5 {[%emt 0:01:30]} 11. Nc3 {[%emt 0:01:30]} Na6 {[%emt 0:00:00]} 12. a3 {[%emt 0:03:30]} Nh5 {[%emt 0:01:00]} 13. Rb1 {[%emt 0:04:30]} Nc5 {[%emt 0:01:30]} 14. Bc2 {[%emt 0:03:30]} Nf4 {[%emt 0:11:30]} 15. b4 {[%emt 0:04:30]} Na6 {[%emt 0:01:30]} 16. Be3 {[%emt 0:05:30]} h5 {[%emt 0:20:30]} 17. Ne2 {[%emt 0:07:30]} g5 {[%emt 0:08:30]} 18. Ng3 {[%emt 0:05:30]} g4 {[%emt 0:01:30]} 19. hxg4 {[%emt 0:01:30]} Bxg4 {[%emt 0:04:30]} 20. Nf5 {[%emt 0:01:30]} Qf6 {[%emt 0:06:30]} 21. Qd2 {[%emt 0:04:30]} Bxf3 {[%emt 0:11:30]} 22. Bxf4 {[%emt 0:00:30]} exf4 {[%emt 0:00:30]} 23. gxf3 {[%emt 0:00:00]} Bh6 {[%emt 0:01:30]} 24. Kg2 {[%emt 0:16:00]} Qg5+ {[%emt 0:06:30]} 25. Kh1 {[%emt 0:01:30]} Kh8 {[%emt 0:00:22]} 26. Rg1 {[%emt 0:02:30]} Qf6 {[%emt 0:00:05]} 27. Qd4 {[%emt 0:01:30]} Re5 {[%emt 0:01:08]} 28. Qd2 {[%emt 0:00:30]} Ree8 {[%emt 0:02:40]} 29. Bd3 {[%emt 0:08:30]} axb4 {[%emt 0:00:42]} 30. axb4 {[%emt 0:00:30]} Rg8 {[%emt 0:00:31]} 31. c5 {[%emt 0:00:30]} Rg6 {[%emt 0:03:09]} 32. Bxa6 {[%emt 0:00:30]} bxa6 {[%emt 0:00:54]} 33. cxd6 {[%emt 0:01:30]} cxd6 {[%emt 0:00:02]} 34. Qb2 {[%emt 0:00:30]} Qxb2 {[%emt 0:03:28]} 35. Rxb2 {[%emt 0:00:30]} Bg7 {[%emt 0:00:13]} 36. Rc2 {[%emt 0:03:42]} Be5 {[%emt 0:02:33]} 37. Rgc1 {[%emt 0:01:28]} Rb8 {[%emt 0:00:48]} 38. Rc8+ {[%emt 0:01:52]} Rg8 {[%emt 0:00:11]} 39. R8c7 {[%emt 0:05:15]} Rgf8 {[%emt 0:02:50]} 40. R1c4 {[%emt 0:00:43]} Kh7 {[%emt 0:00:40]} 41. R7c6 {[%emt 0:02:27]} a5 {[%emt 0:00:45]} 42. bxa5 {[%emt 0:00:29]} Rb1+ {[%emt 0:00:32]} 43. Rc1 {[%emt 0:01:49]} Rb3 {[%emt 0:00:46]} 44. Nxd6 {[%emt 0:04:01]} Rxf3 {[%emt 0:00:05]} 45. Nf5 {[%emt 0:00:29]} f6 {[%emt 0:01:12]} 46. Re6 {[%emt 0:01:31]} Rg8 {[%emt 0:00:31]} 47. Kh2 {[%emt 0:02:12]} Rxf2+ {[%emt 0:00:02]} 48. Kh3 {[%emt 0:00:15]} f3 {[%emt 0:00:50]} 49. Rxe5 {[%emt 0:00:40]} fxe5 {[%emt 0:00:01]} 50. d6 {[%emt 0:00:09]} Rd2 {[%emt 0:00:45]} 51. a6 {[%emt 0:00:40]} f2 {[%emt 0:00:19]} 52. a7 {[%emt 0:01:03]} Ra2 {[%emt 0:01:31]} 53. Ng3 {[%emt 0:00:44]} Ra3 {[%emt 0:00:31]} 54. d7 {[%emt 0:00:24]} Raxg3+ {[%emt 0:00:16]} 55. Kh2 {[%emt 0:00:04]} Rg2+ {[%emt 0:00:14]} 56. Kh3 {[%emt 0:00:04]} Rg1 {[%emt 0:01:02]} 0-1

[Event "33rd Pula Open 2019"]
[Site "Pula"]
[Date "2019.06.29"]
[Round "9.2"]
[White "Kyc, Jerzy"]
[Black "Beletic, Daniel"]
[Result "1-0"]
[ECO "C40"]
[WhiteElo "2279"]
[BlackElo "2380"]
[Annotator "NA RC"]
[PlyCount "46"]
[EventDate "2019.06.22"]
[EventType "swiss"]
[EventCountry "CRO"]
[SourceTitle "playchess.com"]
[Source "ChessBase"]
[SourceQuality "1"]
[TimeControl "5400+30"]

1. e4 {[%emt 0:00:30]} e5 {[%emt 0:20:30]} 2. Nf3 {[%emt 0:00:00]} d5 {[%emt 0:00:00]} 3. exd5 {[%emt 0:00:00]} Bd6 {[%emt 0:00:00]} 4. Nc3 {[%emt 0:01:30]} Nf6 {[%emt 0:00:30]} 5. Bb5+ {[%emt 0:01:30]} Nbd7 {[%emt 0:00:30]} 6. O-O {[%emt 0:01:30]} O-O {[%emt 0:01:30]} 7. Re1 {[%emt 0:03:30]} Nxd5 {[%emt 0:15:30]} 8. Nxd5 {[%emt 0:01:30]} c6 {[%emt 0:00:30]} 9. d4 {[%emt 0:06:30]} exd4 {[%emt 0:06:30]} 10. Bg5 {[%emt 0:02:30]} f6 {[%emt 0:00:30]} 11. Bf4 {[%emt 0:06:30]} Ne5 {[%emt 0:00:30]} 12. Nxe5 {[%emt 0:01:30]} fxe5 {[%emt 0:00:30]} 13. Bxe5 {[%emt 0:00:30]} Bxe5 {[%emt 0:07:30]} 14. Rxe5 {[%emt 0:00:00]} cxb5 {[%emt 0:00:30]} 15. Qxd4 {[%emt 0:02:00]} Bd7 {[%emt 0:00:30]} 16. Rae1 {[%emt 0:01:30]} Rf7 {[%emt 0:01:30]} 17. Re7 {[%emt 0:01:30]} Qf8 {[%emt 0:00:00]} 18. Rxf7 {[%emt 0:00:30]} Qxf7 {[%emt 0:00:00]} 19. Ne7+ {[%emt 0:00:00]} Kf8 {[%emt 0:00:30]} 20. Qxd7 {[%emt 0:00:00]} Re8 {[%emt 0:00:00]} 21. Qxb7 {[%emt 0:00:30]} Rxe7 {[%emt 0:00:00]} 22. Qxe7+ {[%emt 0:00:30]} Qxe7 {[%emt 0:00:30]} 23. Rxe7 {[%emt 0:00:00]} Kxe7 {[%emt 0:00:00]} 1-0

[Event "33rd Pula Open 2019"]
[Site "Pula"]
[Date "2019.06.29"]
[Round "9.5"]
[White "Tisaj, Domen"]
[Black "Tratar, Marko"]
[Result "1-0"]
[ECO "A40"]
[WhiteElo "2232"]
[BlackElo "2463"]
[Annotator "RC"]
[PlyCount "61"]
[EventDate "2019.06.22"]
[EventType "swiss"]
[EventCountry "CRO"]
[SourceTitle "playchess.com"]
[Source "ChessBase"]
[SourceQuality "1"]
[TimeControl "5400+30"]

1. d4 {[%emt 0:00:30]} e6 {[%emt 0:09:30]} 2. c4 {[%emt 0:00:00]} Bb4+ {[%emt 0:00:30]} 3. Bd2 {[%emt 0:00:00]} Qe7 {[%emt 0:00:30]} 4. Qc2 {[%emt 0:13:30]} f5 {[%emt 0:20:30]} 5. e3 {[%emt 0:01:30]} Nf6 {[%emt 0:06:30]} 6. Bd3 {[%emt 0:00:30]} b6 {[%emt 0:05:30]} 7. Ne2 {[%emt 0:00:30]} Bb7 {[%emt 0:00:30]} 8. f3 {[%emt 0:01:30]} Bxd2+ {[%emt 0:18:30]} 9. Qxd2 {[%emt 0:02:30]} g6 {[%emt 0:00:30]} 10. Nbc3 {[%emt 0:02:30]} O-O {[%emt 0:05:30]} 11. O-O-O {[%emt 0:02:30]} c5 {[%emt 0:02:30]} 12. d5 {[%emt 0:03:30]} Na6 {[%emt 0:03:30]} 13. e4 {[%emt 0:06:30]} fxe4 {[%emt 0:00:30]} 14. Bxe4 {[%emt 0:01:30]} d6 {[%emt 0:13:27]} 15. h4 {[%emt 0:05:30]} Rad8 {[%emt 0:03:04]} 16. Ng3 {[%emt 0:07:30]} exd5 {[%emt 0:01:34]} 17. Nxd5 {[%emt 0:09:30]} Bxd5 {[%emt 0:00:05]} 18. Bxd5+ {[%emt 0:00:00]} Nxd5 {[%emt 0:00:09]} 19. Qxd5+ {[%emt 0:01:00]} Qf7 {[%emt 0:01:22]} 20. Ne4 {[%emt 0:00:30]} Qxd5 {[%emt 0:01:22]} 21. cxd5 {[%emt 0:07:30]} Nc7 {[%emt 0:00:14]} 22. h5 {[%emt 0:00:30]} Kg7 {[%emt 0:04:10]} 23. Rh4 {[%emt 0:03:30]} g5 {[%emt 0:00:49]} 24. Nxg5 {[%emt 0:00:00]} Rf5 {[%emt 0:00:05]} 25. Rg4 {[%emt 0:00:00]} Kh6 {[%emt 0:00:29]} 26. Ne6 {[%emt 0:11:46]} Nxe6 {[%emt 0:00:06]} 27. dxe6 {[%emt 0:00:04]} d5 {[%emt 0:01:18]} 28. e7 {[%emt 0:01:46]} Re8 {[%emt 0:00:04]} 29. Re1 {[%emt 0:00:03]} Rf7 {[%emt 0:01:04]} 30. Re6+ {[%emt 0:00:05]} Kxh5 {[%emt 0:00:03]} 31. Re1 {[%emt 0:00:05]} 1-0

[Event "33rd Pula Open 2019"]
[Site "Pula"]
[Date "2019.06.29"]
[Round "9.6"]
[White "Fercec, Nenad"]
[Black "Zierke, Oliver"]
[Result "1-0"]
[ECO "B64"]
[WhiteElo "2446"]
[BlackElo "2227"]
[Annotator "RC"]
[PlyCount "81"]
[EventDate "2019.06.22"]
[EventType "swiss"]
[EventCountry "CRO"]
[SourceTitle "playchess.com"]
[Source "ChessBase"]
[SourceQuality "1"]
[TimeControl "5400+30"]

1. e4 {[%emt 0:00:30]} c5 {[%emt 0:00:30]} 2. Nf3 {[%emt 0:00:00]} d6 {[%emt 0:00:00]} 3. d4 {[%emt 0:00:00]} cxd4 {[%emt 0:00:00]} 4. Nxd4 {[%emt 0:00:00]} Nf6 {[%emt 0:00:30]} 5. Nc3 {[%emt 0:00:00]} Nc6 {[%emt 0:00:00]} 6. Bg5 {[%emt 0:00:30]} e6 {[%emt 0:00:00]} 7. Qd2 {[%emt 0:00:00]} Be7 {[%emt 0:00:30]} 8. O-O-O {[%emt 0:00:00]} O-O {[%emt 0:00:30]} 9. f4 {[%emt 0:00:30]} h6 {[%emt 0:00:30]} 10. Bh4 {[%emt 0:00:30]} e5 {[%emt 0:00:30]} 11. Nf5 {[%emt 0:00:30]} Bxf5 {[%emt 0:00:30]} 12. exf5 {[%emt 0:00:00]} exf4 {[%emt 0:00:30]} 13. Kb1 {[%emt 0:00:00]} d5 {[%emt 0:00:30]} 14. Bxf6 {[%emt 0:00:30]} Bxf6 {[%emt 0:00:00]} 15. Nxd5 {[%emt 0:00:00]} Be5 {[%emt 0:00:00]} 16. c3 {[%emt 0:01:00]} Ne7 {[%emt 0:15:30]} 17. Bc4 {[%emt 0:00:30]} Nxd5 {[%emt 0:00:30]} 18. Qxd5 {[%emt 0:03:30]} Qf6 {[%emt 0:00:30]} 19. Rhe1 {[%emt 0:05:30]} Rad8 {[%emt 0:04:30]} 20. Qe4 {[%emt 0:00:30]} Rxd1+ {[%emt 0:04:30]} 21. Rxd1 {[%emt 0:00:00]} Rd8 {[%emt 0:00:00]} 22. Bd5 {[%emt 0:07:00]} b5 {[%emt 0:04:00]} 23. a3 {[%emt 0:02:30]} a5 {[%emt 0:03:30]} 24. Rd3 {[%emt 0:12:30]} Bd6 {[%emt 0:08:30]} 25. Bb3 {[%emt 0:05:30]} Rc8 {[%emt 0:10:30]} 26. Qd5 {[%emt 0:25:30]} Be5 {[%emt 0:05:30]} 27. Qxb5 {[%emt 0:05:30]} Rb8 {[%emt 0:03:30]} 28. Qc4 {[%emt 0:01:30]} Qxf5 {[%emt 0:00:30]} 29. Ka2 {[%emt 0:00:30]} g5 {[%emt 0:15:30]} 30. Rd5 {[%emt 0:00:30]} Qf6 {[%emt 0:01:30]} 31. Rxa5 {[%emt 0:02:30]} Kg7 {[%emt 0:03:12]} 32. Qe4 {[%emt 0:01:30]} Re8 {[%emt 0:01:37]} 33. Ra7 {[%emt 0:01:30]} Re7 {[%emt 0:00:20]} 34. Rxe7 {[%emt 0:00:30]} Qxe7 {[%emt 0:00:04]} 35. h3 {[%emt 0:01:30]} Qf6 {[%emt 0:02:06]} 36. a4 {[%emt 0:01:30]} h5 {[%emt 0:00:12]} 37. Qe2 {[%emt 0:01:30]} Kg6 {[%emt 0:03:56]} 38. a5 {[%emt 0:00:30]} Bb8 {[%emt 0:02:31]} 39. Qe8 {[%emt 0:01:30]} Ba7 {[%emt 0:01:12]} 40. Qg8+ {[%emt 0:00:30]} Kf5 {[%emt 0:00:49]} 41. Bxf7 {[%emt 0:01:30]} 1-0

[Event "33rd Pula Open 2019"]
[Site "Pula"]
[Date "2019.06.29"]
[Round "9.7"]
[White "Zufic, Miroslav"]
[Black "Jazdanovs, Aleksandrs"]
[Result "1-0"]
[ECO "A30"]
[WhiteElo "2380"]
[BlackElo "2232"]
[Annotator "RC"]
[PlyCount "29"]
[EventDate "2019.06.22"]
[EventType "swiss"]
[EventCountry "CRO"]
[SourceTitle "playchess.com"]
[Source "ChessBase"]
[SourceQuality "1"]
[TimeControl "5400+30"]

1. c4 {[%emt 0:00:30]} Nf6 {[%emt 0:08:30]} 2. Nc3 {[%emt 0:00:00]} c5 {[%emt 0:02:30]} 3. g3 {[%emt 0:00:00]} e6 {[%emt 0:04:30]} 4. Nf3 {[%emt 0:00:30]} b6 {[%emt 0:00:30]} 5. Bg2 {[%emt 0:00:30]} Bb7 {[%emt 0:00:30]} 6. O-O {[%emt 0:00:30]} a6 {[%emt 0:00:30]} 7. b3 {[%emt 0:09:30]} Be7 {[%emt 0:00:30]} 8. Bb2 {[%emt 0:00:00]} O-O {[%emt 0:01:30]} 9. e3 {[%emt 0:01:00]} Nc6 {[%emt 0:06:30]} 10. Qe2 {[%emt 0:05:30]} d5 {[%emt 0:04:30]} 11. d3 {[%emt 0:00:30]} d4 {[%emt 0:06:30]} 12. exd4 {[%emt 0:10:30]} Nxd4 {[%emt 0:00:30]} 13. Nxd4 {[%emt 0:00:30]} Bxg2 {[%emt 0:00:30]} 14. Kxg2 {[%emt 0:00:30]} Qxd4 {[%emt 0:00:00]} 15. Nd5 {[%emt 0:03:30]} 1-0

[Event "33rd Pula Open 2019"]
[Site "Pula"]
[Date "2019.06.29"]
[Round "9.8"]
[White "Biti, Ozren"]
[Black "Urh, Zala"]
[Result "1/2-1/2"]
[ECO "C54"]
[WhiteElo "2374"]
[BlackElo "2127"]
[Annotator "ChessBase"]
[PlyCount "40"]
[EventDate "2019.06.22"]
[EventType "swiss"]
[EventCountry "CRO"]
[SourceTitle "playchess.com"]
[Source "ChessBase"]
[SourceQuality "1"]
[TimeControl "5400+30"]

1. e4 {[%emt 0:00:30]} e5 {[%emt 0:01:30]} 2. Nf3 {[%emt 0:00:00]} Nc6 {[%emt 0:00:00]} 3. Bc4 {[%emt 0:00:00]} Bc5 {[%emt 0:00:00]} 4. c3 {[%emt 0:01:30]} Nf6 {[%emt 0:00:30]} 5. d3 {[%emt 0:00:30]} a6 {[%emt 0:00:00]} 6. a4 {[%emt 0:00:30]} Ba7 {[%emt 0:01:00]} 7. h3 {[%emt 0:04:30]} h6 {[%emt 0:01:30]} 8. Nbd2 {[%emt 0:01:30]} O-O {[%emt 0:00:30]} 9. O-O {[%emt 0:00:30]} d6 {[%emt 0:00:30]} 10. Re1 {[%emt 0:02:30]} Re8 {[%emt 0:00:30]} 11. Nf1 {[%emt 0:02:30]} Be6 {[%emt 0:00:30]} 12. Ng3 {[%emt 0:14:30]} d5 {[%emt 0:05:30]} 13. exd5 {[%emt 0:06:30]} Bxd5 {[%emt 0:00:30]} 14. Bxd5 {[%emt 0:01:30]} Qxd5 {[%emt 0:00:30]} 15. Be3 {[%emt 0:06:30]} Bxe3 {[%emt 0:03:30]} 16. Rxe3 {[%emt 0:04:30]} Rad8 {[%emt 0:01:30]} 17. Qe2 {[%emt 0:05:30]} Qb3 {[%emt 0:11:30]} 18. Ra3 {[%emt 0:09:30]} Qd5 {[%emt 0:01:30]} 19. Ra1 {[%emt 0:04:30]} Qb3 {[%emt 0:06:30]} 20. Ra3 {[%emt 0:00:30]} Qd5 {[%emt 0:00:00]} 1/2-1/2